[Event "Titled Tuesday Blitz April 11 Early 2023"]
[White "La Villa Rivas, Marlon Javier"]
[Black "Ehlvest, Jaan"]
[WhiteFideId "3519546"]
[BlackFideId "4500016"]
[WhiteElo "2135"]
[BlackElo "2442"]
[Result "1-0"]
[Round "01"]
[TimeControl "180+2"]
[Date "2023.04.11"]
[WhiteClock "0:00:56"]
[BlackClock "0:01:02"]

1. e4 {[%clk 0:02:52]}  c5 {[%clk 0:02:59]} 2. Nf3 {[%clk 0:02:51]}  Nc6 {[%clk 0:02:58]} 3. d4 {[%clk 0:02:48]}  cxd4 {[%clk 0:02:58]} 4. Nxd4 {[%clk 0:02:49]}  Nf6 {[%clk 0:02:58]} 5. Nc3 {[%clk 0:02:49]}  e5 {[%clk 0:02:58]} 6. Ndb5 {[%clk 0:02:48]}  d6 {[%clk 0:02:58]} 7. Bg5 {[%clk 0:02:48]}  a6 {[%clk 0:02:57]} 8. Na3 {[%clk 0:02:47]}  b5 {[%clk 0:02:57]} 9. Nd5 {[%clk 0:02:45]}  Be7 {[%clk 0:02:57]} 10. Bxf6 {[%clk 0:02:45]}  Bxf6 {[%clk 0:02:56]} 11. c4 {[%clk 0:02:43]}  Nd4 {[%clk 0:02:44]} 12. cxb5 {[%clk 0:02:33]}  Bb7 {[%clk 0:02:44]} 13. Bc4 {[%clk 0:02:22]}  Qa5+ {[%clk 0:02:29]} 14. Qd2 {[%clk 0:02:20]}  Qxd2+ {[%clk 0:02:23]} 15. Kxd2 {[%clk 0:02:20]}  Bg5+ {[%clk 0:02:16]} 16. f4 {[%clk 0:02:11]}  exf4 {[%clk 0:02:13]} 17. Nc7+ {[%clk 0:02:08]}  Kd7 {[%clk 0:02:11]} 18. Nxa8 {[%clk 0:02:07]}  Bxa8 {[%clk 0:02:05]} 19. Kd3 {[%clk 0:02:06]}  Ne6 {[%clk 0:01:58]} 20. b4 {[%clk 0:02:01]}  Bf6 {[%clk 0:01:50]} 21. Rab1 {[%clk 0:01:50]}  axb5 {[%clk 0:01:42]} 22. Nxb5 {[%clk 0:01:43]}  Bc6 {[%clk 0:01:33]} 23. Na7 {[%clk 0:01:32]}  Bb7 {[%clk 0:01:29]} 24. Rhd1 {[%clk 0:01:23]}  Ra8 {[%clk 0:01:27]} 25. Nb5 {[%clk 0:01:21]}  Ng5 {[%clk 0:01:21]} 26. Bd5 {[%clk 0:01:04]}  Bxd5 {[%clk 0:01:13]} 27. exd5 {[%clk 0:01:04]}  Rxa2 {[%clk 0:01:12]} 28. Rbc1 {[%clk 0:01:02]}  Rxg2 {[%clk 0:01:02]} 29. Rc7+ {[%clk 0:00:56]}  Kd8 {[%clk 0:01:02]} 30. Rdc1 {[%clk 0:00:56]} 1-0


[Site "https://www.chess.com"]

[Event "Titled Tuesday Blitz April 11 Early 2023"]
[White "Ribeiro, Matheus Mendes Domingues"]
[Black "morozcoma"]
[WhiteFideId "324226923"]
[WhiteElo "2168"]
[BlackElo "2253"]
[Result "0-1"]
[Round "01"]
[TimeControl "180+2"]
[Date "2023.04.11"]
[WhiteClock "0:00:14"]
[BlackClock "0:01:14"]

1. c4 {[%clk 0:03:00]}  Nf6 {[%clk 0:02:53]} 2. Nc3 {[%clk 0:03:01]}  e6 {[%clk 0:02:54]} 3. e4 {[%clk 0:03:02]}  d5 {[%clk 0:02:54]} 4. e5 {[%clk 0:03:02]}  d4 {[%clk 0:02:55]} 5. exf6 {[%clk 0:03:03]}  dxc3 {[%clk 0:02:54]} 6. bxc3 {[%clk 0:03:04]}  Qxf6 {[%clk 0:02:54]} 7. Nf3 {[%clk 0:03:04]}  Nc6 {[%clk 0:02:53]} 8. d4 {[%clk 0:03:04]}  e5 {[%clk 0:02:48]} 9. Bg5 {[%clk 0:03:05]}  Qg6 {[%clk 0:02:46]} 10. Bd3 {[%clk 0:03:03]}  e4 {[%clk 0:02:45]} 11. Bxe4 {[%clk 0:02:43]}  Qxe4+ {[%clk 0:02:45]} 12. Kd2 {[%clk 0:02:43]}  Be7 {[%clk 0:02:35]} 13. Re1 {[%clk 0:02:39]}  Qg6 {[%clk 0:02:26]} 14. Bxe7 {[%clk 0:01:52]}  Nxe7 {[%clk 0:02:24]} 15. Qa4+ {[%clk 0:01:52]}  Bd7 {[%clk 0:02:22]} 16. Qb4 {[%clk 0:01:50]}  Qd6 {[%clk 0:02:18]} 17. Ne5 {[%clk 0:01:08]}  Qxb4 {[%clk 0:01:59]} 18. cxb4 {[%clk 0:01:08]}  f6 {[%clk 0:02:00]} 19. Nf3 {[%clk 0:01:04]}  Kf7 {[%clk 0:01:57]} 20. Kc3 {[%clk 0:01:04]}  a5 {[%clk 0:01:51]} 21. b5 {[%clk 0:01:03]}  a4 {[%clk 0:01:52]} 22. Kb4 {[%clk 0:00:59]}  c6 {[%clk 0:01:52]} 23. b6 {[%clk 0:00:56]}  Ra6 {[%clk 0:01:51]} 24. Kc5 {[%clk 0:00:54]}  Be6 {[%clk 0:01:43]} 25. Re2 {[%clk 0:00:43]}  Ra5+ {[%clk 0:01:43]} 26. Kb4 {[%clk 0:00:39]}  Ra6 {[%clk 0:01:38]} 27. Rae1 {[%clk 0:00:39]}  c5+ {[%clk 0:01:39]} 28. dxc5 {[%clk 0:00:29]}  Nc6+ {[%clk 0:01:38]} 29. Kc3 {[%clk 0:00:28]}  Bg4 {[%clk 0:01:38]} 30. Rd2 {[%clk 0:00:25]}  Bxf3 {[%clk 0:01:37]} 31. Rd7+ {[%clk 0:00:25]}  Kg6 {[%clk 0:01:36]} 32. gxf3 {[%clk 0:00:25]}  Ne5 {[%clk 0:01:35]} 33. Rxb7 {[%clk 0:00:23]}  Rc8 {[%clk 0:01:32]} 34. Rg1+ {[%clk 0:00:22]}  Kf5 {[%clk 0:01:31]} 35. Kb4 {[%clk 0:00:21]}  g5 {[%clk 0:01:22]} 36. Kb5 {[%clk 0:00:18]}  Raa8 {[%clk 0:01:21]} 37. Rd1 {[%clk 0:00:16]}  Nc6 {[%clk 0:01:15]} 38. Rd6 {[%clk 0:00:14]}  Ra5# {[%clk 0:01:14]} 0-1


[Site "https://www.chess.com"]

[Event "Titled Tuesday Blitz April 11 Early 2023"]
[White "Ozates, Tuna"]
[Black "Lauridsen, Jesper Morch"]
[WhiteFideId "6354521"]
[BlackFideId "1401890"]
[WhiteElo "2151"]
[BlackElo "2249"]
[Result "1-0"]
[Round "01"]
[TimeControl "180+2"]
[Date "2023.04.11"]
[WhiteClock "0:01:12"]
[BlackClock "0:00:02"]

1. e4 {[%clk 0:03:00]}  e6 {[%clk 0:02:54]} 2. d4 {[%clk 0:03:00]}  d5 {[%clk 0:02:52]} 3. exd5 {[%clk 0:03:00]}  exd5 {[%clk 0:02:51]} 4. Bd3 {[%clk 0:03:00]}  c5 {[%clk 0:02:50]} 5. dxc5 {[%clk 0:03:00]}  Bxc5 {[%clk 0:02:48]} 6. Nf3 {[%clk 0:03:01]}  Nc6 {[%clk 0:02:40]} 7. h3 {[%clk 0:03:00]}  Nge7 {[%clk 0:02:36]} 8. O-O {[%clk 0:03:00]}  O-O {[%clk 0:02:35]} 9. a3 {[%clk 0:03:00]}  Qd6 {[%clk 0:02:26]} 10. Nc3 {[%clk 0:02:56]}  Ng6 {[%clk 0:01:34]} 11. Bxg6 {[%clk 0:02:45]}  Qxg6 {[%clk 0:01:23]} 12. Nxd5 {[%clk 0:02:45]}  Rd8 {[%clk 0:01:12]} 13. Bg5 {[%clk 0:02:26]}  f6 {[%clk 0:01:02]} 14. Bh4 {[%clk 0:02:24]}  Bxh3 {[%clk 0:00:59]} 15. Nf4 {[%clk 0:02:06]}  Qg4 {[%clk 0:00:34]} 16. Nxh3 {[%clk 0:02:02]}  Rxd1 {[%clk 0:00:31]} 17. Raxd1 {[%clk 0:02:02]}  g5 {[%clk 0:00:25]} 18. b4 {[%clk 0:01:59]}  Bb6 {[%clk 0:00:22]} 19. b5 {[%clk 0:01:57]}  Ne7 {[%clk 0:00:16]} 20. Rfe1 {[%clk 0:01:42]}  Re8 {[%clk 0:00:10]} 21. Nhxg5 {[%clk 0:01:21]}  fxg5 {[%clk 0:00:09]} 22. Bxg5 {[%clk 0:01:22]}  Kf8 {[%clk 0:00:08]} 23. Rd6 {[%clk 0:01:14]}  Nf5 {[%clk 0:00:07]} 24. Rf6+ {[%clk 0:01:14]}  Kg7 {[%clk 0:00:02]} 25. Rxe8 {[%clk 0:01:12]} 1-0


[Site "https://www.chess.com"]

[Event "Titled Tuesday Blitz April 11 Early 2023"]
[White "Lakshmi C"]
[Black "Postnikov, Daniil"]
[WhiteFideId "25035347"]
[BlackFideId "4166329"]
[WhiteElo "1942"]
[BlackElo "2261"]
[Result "0-1"]
[Round "01"]
[TimeControl "180+2"]
[Date "2023.04.11"]
[WhiteClock "0:01:42"]
[BlackClock "0:02:19"]

1. e4 {[%clk 0:02:54]}  e6 {[%clk 0:02:58]} 2. d4 {[%clk 0:02:53]}  d5 {[%clk 0:02:59]} 3. Nc3 {[%clk 0:02:53]}  Nf6 {[%clk 0:02:58]} 4. e5 {[%clk 0:02:53]}  Nfd7 {[%clk 0:02:57]} 5. f4 {[%clk 0:02:53]}  c5 {[%clk 0:02:57]} 6. Nf3 {[%clk 0:02:49]}  Nc6 {[%clk 0:02:57]} 7. Be3 {[%clk 0:02:49]}  a6 {[%clk 0:02:55]} 8. Qd2 {[%clk 0:02:49]}  b5 {[%clk 0:02:54]} 9. dxc5 {[%clk 0:02:42]}  Bxc5 {[%clk 0:02:52]} 10. O-O-O {[%clk 0:02:31]}  Bb7 {[%clk 0:02:51]} 11. Qf2 {[%clk 0:02:30]}  Qb6 {[%clk 0:02:47]} 12. Bxc5 {[%clk 0:02:24]}  Nxc5 {[%clk 0:02:48]} 13. Qe1 {[%clk 0:02:10]}  b4 {[%clk 0:02:46]} 14. Ne2 {[%clk 0:02:10]}  Rc8 {[%clk 0:02:45]} 15. Kb1 {[%clk 0:02:10]}  a5 {[%clk 0:02:42]} 16. Ned4 {[%clk 0:02:10]}  Nxd4 {[%clk 0:02:42]} 17. Nxd4 {[%clk 0:02:09]}  O-O {[%clk 0:02:42]} 18. Nb5 {[%clk 0:02:07]}  Na4 {[%clk 0:02:37]} 19. b3 {[%clk 0:01:53]}  Nc3+ {[%clk 0:02:30]} 20. Nxc3 {[%clk 0:01:53]}  bxc3 {[%clk 0:02:31]} 21. a3 {[%clk 0:01:48]}  d4 {[%clk 0:02:28]} 22. Bd3 {[%clk 0:01:45]}  Bd5 {[%clk 0:02:28]} 23. Ka2 {[%clk 0:01:45]}  a4 {[%clk 0:02:27]} 24. Rb1 {[%clk 0:01:43]}  axb3+ {[%clk 0:02:27]} 25. cxb3 {[%clk 0:01:42]}  c2 {[%clk 0:02:19]} 0-1


[Site "https://www.chess.com"]

[Event "Titled Tuesday Blitz April 11 Early 2023"]
[White "ilya2700"]
[Black "TimGrutter03"]
[WhiteElo "2243"]
[BlackElo "2595"]
[Result "1-0"]
[Round "01"]
[TimeControl "180+2"]
[Date "2023.04.11"]
[WhiteClock "0:00:11"]
[BlackClock "0:00:02"]

1. d4 {[%clk 0:02:59]}  g6 {[%clk 0:02:57]} 2. c4 {[%clk 0:02:59]}  Bg7 {[%clk 0:02:57]} 3. e4 {[%clk 0:03:00]}  d6 {[%clk 0:02:56]} 4. f4 {[%clk 0:03:00]}  c5 {[%clk 0:02:48]} 5. d5 {[%clk 0:03:00]}  e6 {[%clk 0:02:48]} 6. Nc3 {[%clk 0:02:57]}  exd5 {[%clk 0:02:48]} 7. cxd5 {[%clk 0:02:57]}  Ne7 {[%clk 0:02:48]} 8. Nf3 {[%clk 0:02:55]}  O-O {[%clk 0:02:47]} 9. Bd3 {[%clk 0:02:52]}  Nd7 {[%clk 0:02:36]} 10. O-O {[%clk 0:02:49]}  a6 {[%clk 0:02:35]} 11. a4 {[%clk 0:02:48]}  Rb8 {[%clk 0:02:35]} 12. Re1 {[%clk 0:02:43]}  Qc7 {[%clk 0:02:25]} 13. Qb3 {[%clk 0:02:14]}  Re8 {[%clk 0:01:38]} 14. Be3 {[%clk 0:02:10]}  Kh8 {[%clk 0:01:34]} 15. Ng5 {[%clk 0:01:53]}  Rf8 {[%clk 0:01:32]} 16. Rac1 {[%clk 0:01:37]}  h6 {[%clk 0:01:31]} 17. Nf3 {[%clk 0:01:37]}  b6 {[%clk 0:01:05]} 18. h4 {[%clk 0:01:25]}  f5 {[%clk 0:00:45]} 19. h5 {[%clk 0:01:18]}  fxe4 {[%clk 0:00:38]} 20. Nxe4 {[%clk 0:01:08]}  Nf6 {[%clk 0:00:34]} 21. Nxf6 {[%clk 0:01:01]}  Rxf6 {[%clk 0:00:30]} 22. Bd4 {[%clk 0:00:59]}  Rxf4 {[%clk 0:00:20]} 23. Bxg7+ {[%clk 0:00:56]}  Kxg7 {[%clk 0:00:21]} 24. Qc3+ {[%clk 0:00:45]}  Kg8 {[%clk 0:00:20]} 25. hxg6 {[%clk 0:00:36]}  Bf5 {[%clk 0:00:19]} 26. Qd2 {[%clk 0:00:20]}  Rg4 {[%clk 0:00:16]} 27. Rxe7 {[%clk 0:00:18]}  Qxe7 {[%clk 0:00:14]} 28. Bxf5 {[%clk 0:00:18]}  Rxa4 {[%clk 0:00:03]} 29. Qxh6 {[%clk 0:00:16]}  Qg7 {[%clk 0:00:03]} 30. Be6+ {[%clk 0:00:16]}  Kf8 {[%clk 0:00:03]} 31. Qf4+ {[%clk 0:00:12]}  Ke7 {[%clk 0:00:04]} 32. Qxa4 {[%clk 0:00:11]}  Qxb2 {[%clk 0:00:01]} 33. Qd7+ {[%clk 0:00:10]}  Kf6 {[%clk 0:00:02]} 34. Qf7# {[%clk 0:00:11]} 1-0


[Site "https://www.chess.com"]

[Event "Titled Tuesday Blitz April 11 Early 2023"]
[White "Djokic, Mihailo"]
[Black "Adithya A Chullikkad"]
[WhiteFideId "976440"]
[BlackFideId "45078734"]
[WhiteElo "2294"]
[BlackElo "1984"]
[Result "1-0"]
[Round "01"]
[TimeControl "180+2"]
[Date "2023.04.11"]
[WhiteClock "0:00:30"]
[BlackClock "0:00:23"]

1. e4 {[%clk 0:02:59]}  c5 {[%clk 0:02:58]} 2. Nf3 {[%clk 0:02:59]}  d6 {[%clk 0:02:58]} 3. d4 {[%clk 0:03:00]}  cxd4 {[%clk 0:02:59]} 4. Nxd4 {[%clk 0:03:00]}  Nf6 {[%clk 0:02:59]} 5. Nc3 {[%clk 0:03:00]}  a6 {[%clk 0:02:59]} 6. Rg1 {[%clk 0:03:00]}  e5 {[%clk 0:02:40]} 7. Nb3 {[%clk 0:02:57]}  Be6 {[%clk 0:02:39]} 8. g4 {[%clk 0:02:57]}  Be7 {[%clk 0:02:36]} 9. g5 {[%clk 0:02:57]}  Nfd7 {[%clk 0:02:36]} 10. Be3 {[%clk 0:02:57]}  Nc6 {[%clk 0:02:36]} 11. Qd2 {[%clk 0:02:58]}  b5 {[%clk 0:02:32]} 12. h4 {[%clk 0:02:55]}  Nb6 {[%clk 0:02:30]} 13. Nd5 {[%clk 0:02:43]}  Nc4 {[%clk 0:02:09]} 14. Bxc4 {[%clk 0:02:40]}  bxc4 {[%clk 0:02:10]} 15. Bb6 {[%clk 0:02:35]}  Qb8 {[%clk 0:01:50]} 16. Na5 {[%clk 0:02:26]}  Bxd5 {[%clk 0:01:38]} 17. Qxd5 {[%clk 0:02:24]}  Nb4 {[%clk 0:01:17]} 18. Qd2 {[%clk 0:01:11]}  Qxb6 {[%clk 0:01:11]} 19. Nxc4 {[%clk 0:01:12]}  Qc5 {[%clk 0:01:01]} 20. Ne3 {[%clk 0:01:11]}  g6 {[%clk 0:00:51]} 21. c3 {[%clk 0:01:10]}  Nc6 {[%clk 0:00:48]} 22. Nd5 {[%clk 0:01:10]}  Kd7 {[%clk 0:00:37]} 23. O-O-O {[%clk 0:01:03]}  Rhc8 {[%clk 0:00:28]} 24. Kb1 {[%clk 0:01:03]}  Rab8 {[%clk 0:00:26]} 25. Ka1 {[%clk 0:01:00]}  Na5 {[%clk 0:00:26]} 26. b4 {[%clk 0:00:57]}  Nc4 {[%clk 0:00:20]} 27. bxc5 {[%clk 0:00:52]}  Nxd2 {[%clk 0:00:21]} 28. Nxe7 {[%clk 0:00:45]}  Kxe7 {[%clk 0:00:18]} 29. cxd6+ {[%clk 0:00:45]}  Kxd6 {[%clk 0:00:18]} 30. Rxd2+ {[%clk 0:00:46]}  Ke6 {[%clk 0:00:18]} 31. Rg3 {[%clk 0:00:42]}  Rc4 {[%clk 0:00:18]} 32. Re3 {[%clk 0:00:37]}  a5 {[%clk 0:00:19]} 33. f3 {[%clk 0:00:31]}  a4 {[%clk 0:00:19]} 34. Rb2 {[%clk 0:00:27]}  Rc6 {[%clk 0:00:20]} 35. Rxb8 {[%clk 0:00:27]}  a3 {[%clk 0:00:19]} 36. Rb3 {[%clk 0:00:27]}  Rd6 {[%clk 0:00:19]} 37. Rxa3 {[%clk 0:00:27]}  Rd1+ {[%clk 0:00:20]} 38. Kb2 {[%clk 0:00:28]}  Rd2+ {[%clk 0:00:21]} 39. Kb3 {[%clk 0:00:28]}  Rh2 {[%clk 0:00:21]} 40. Ra6+ {[%clk 0:00:28]}  Ke7 {[%clk 0:00:22]} 41. Ra7+ {[%clk 0:00:28]}  Kf8 {[%clk 0:00:23]} 42. Rd3 {[%clk 0:00:28]}  Kg7 {[%clk 0:00:24]} 43. Rdd7 {[%clk 0:00:28]}  Rh3 {[%clk 0:00:23]} 44. Rxf7+ {[%clk 0:00:29]}  Kg8 {[%clk 0:00:23]} 45. Rg7+ {[%clk 0:00:30]} 1-0


[Site "https://www.chess.com"]

[Event "Titled Tuesday Blitz April 11 Early 2023"]
[White "Ibadov, Dashgyn"]
[Black "De Souza, Cristiano Gomes"]
[WhiteFideId "24107514"]
[BlackFideId "2151758"]
[WhiteElo "2208"]
[BlackElo "2068"]
[Result "1-0"]
[Round "01"]
[TimeControl "180+2"]
[Date "2023.04.11"]
[WhiteClock "0:00:22"]
[BlackClock "0:00:31"]

1. e4 {[%clk 0:03:00]}  c5 {[%clk 0:02:59]} 2. Nf3 {[%clk 0:02:59]}  d6 {[%clk 0:02:58]} 3. d4 {[%clk 0:02:58]}  cxd4 {[%clk 0:02:57]} 4. Nxd4 {[%clk 0:02:59]}  Nf6 {[%clk 0:02:55]} 5. Nc3 {[%clk 0:02:59]}  g6 {[%clk 0:02:54]} 6. Be3 {[%clk 0:02:52]}  Bg7 {[%clk 0:02:52]} 7. f3 {[%clk 0:02:53]}  O-O {[%clk 0:02:51]} 8. Qd2 {[%clk 0:02:52]}  Nc6 {[%clk 0:02:49]} 9. O-O-O {[%clk 0:02:53]}  d5 {[%clk 0:02:48]} 10. Qe1 {[%clk 0:02:49]}  Nxd4 {[%clk 0:02:44]} 11. Bxd4 {[%clk 0:02:48]}  e6 {[%clk 0:02:27]} 12. exd5 {[%clk 0:02:36]}  exd5 {[%clk 0:02:21]} 13. Bd3 {[%clk 0:02:19]}  Re8 {[%clk 0:02:20]} 14. Qh4 {[%clk 0:02:14]}  Be6 {[%clk 0:02:16]} 15. Rhe1 {[%clk 0:02:12]}  a6 {[%clk 0:02:15]} 16. Kb1 {[%clk 0:01:58]}  Nh5 {[%clk 0:02:14]} 17. Qxd8 {[%clk 0:01:53]}  Raxd8 {[%clk 0:02:13]} 18. Ne2 {[%clk 0:01:49]}  Bxd4 {[%clk 0:02:10]} 19. Nxd4 {[%clk 0:01:50]}  Nf4 {[%clk 0:02:10]} 20. g3 {[%clk 0:01:46]}  Nxd3 {[%clk 0:02:09]} 21. Rxd3 {[%clk 0:01:39]}  Bf5 {[%clk 0:02:07]} 22. Rde3 {[%clk 0:01:38]}  Rxe3 {[%clk 0:02:06]} 23. Rxe3 {[%clk 0:01:38]}  Bd7 {[%clk 0:02:00]} 24. Re5 {[%clk 0:01:29]}  Bc6 {[%clk 0:01:57]} 25. c3 {[%clk 0:01:27]}  Kf8 {[%clk 0:01:55]} 26. Kc2 {[%clk 0:01:27]}  Re8 {[%clk 0:01:48]} 27. Nxc6 {[%clk 0:01:11]}  bxc6 {[%clk 0:01:47]} 28. Rxe8+ {[%clk 0:01:10]}  Kxe8 {[%clk 0:01:48]} 29. Kd3 {[%clk 0:00:51]}  Ke7 {[%clk 0:01:46]} 30. Kd4 {[%clk 0:00:50]}  Kd6 {[%clk 0:01:46]} 31. b4 {[%clk 0:00:51]}  f6 {[%clk 0:01:44]} 32. h3 {[%clk 0:00:48]}  h5 {[%clk 0:01:39]} 33. h4 {[%clk 0:00:42]}  g5 {[%clk 0:01:38]} 34. a3 {[%clk 0:00:34]}  gxh4 {[%clk 0:01:09]} 35. gxh4 {[%clk 0:00:35]}  Ke6 {[%clk 0:00:36]} 36. Kc5 {[%clk 0:00:35]}  Ke5 {[%clk 0:00:35]} 37. Kxc6 {[%clk 0:00:34]}  Kf4 {[%clk 0:00:36]} 38. Kxd5 {[%clk 0:00:31]}  Kxf3 {[%clk 0:00:35]} 39. c4 {[%clk 0:00:32]}  f5 {[%clk 0:00:34]} 40. c5 {[%clk 0:00:33]}  Ke2 {[%clk 0:00:33]} 41. c6 {[%clk 0:00:33]}  f4 {[%clk 0:00:33]} 42. c7 {[%clk 0:00:33]}  f3 {[%clk 0:00:33]} 43. c8=Q {[%clk 0:00:33]}  f2 {[%clk 0:00:33]} 44. Qc2+ {[%clk 0:00:33]}  Kf3 {[%clk 0:00:32]} 45. Qe4+ {[%clk 0:00:26]}  Kg3 {[%clk 0:00:31]} 46. Qe2 {[%clk 0:00:24]}  Kg2 {[%clk 0:00:31]} 47. a4 {[%clk 0:00:23]}  Kg1 {[%clk 0:00:31]} 48. b5 {[%clk 0:00:21]}  axb5 {[%clk 0:00:31]} 49. axb5 {[%clk 0:00:22]}  f1=Q {[%clk 0:00:30]} 50. Qxf1+ {[%clk 0:00:22]}  Kxf1 {[%clk 0:00:31]} 51. b6 {[%clk 0:00:22]}  Kg2 {[%clk 0:00:30]} 52. b7 {[%clk 0:00:23]}  Kh3 {[%clk 0:00:31]} 53. b8=Q {[%clk 0:00:23]}  Kxh4 {[%clk 0:00:31]} 54. Qf4+ {[%clk 0:00:21]}  Kh3 {[%clk 0:00:30]} 55. Ke4 {[%clk 0:00:22]}  h4 {[%clk 0:00:31]} 56. Qg5 {[%clk 0:00:22]} 1-0


[Site "https://www.chess.com"]

[Event "Titled Tuesday Blitz April 11 Early 2023"]
[White "MKlose11"]
[Black "Larina, Maria"]
[BlackFideId "24113182"]
[WhiteElo "2578"]
[BlackElo "1848"]
[Result "1-0"]
[Round "01"]
[TimeControl "180+2"]
[Date "2023.04.11"]
[WhiteClock "0:00:13"]
[BlackClock "0:00:06"]

1. e4 {[%clk 0:02:59]}  c6 {[%clk 0:03:00]} 2. Nc3 {[%clk 0:02:54]}  d5 {[%clk 0:03:00]} 3. g3 {[%clk 0:02:51]}  Nf6 {[%clk 0:02:44]} 4. Bg2 {[%clk 0:02:44]}  dxe4 {[%clk 0:02:29]} 5. Nxe4 {[%clk 0:02:43]}  Nxe4 {[%clk 0:02:28]} 6. Bxe4 {[%clk 0:02:42]}  Nd7 {[%clk 0:02:28]} 7. d4 {[%clk 0:02:35]}  Nf6 {[%clk 0:02:28]} 8. Bg2 {[%clk 0:02:36]}  Bg4 {[%clk 0:02:26]} 9. Ne2 {[%clk 0:02:24]}  e6 {[%clk 0:02:25]} 10. c3 {[%clk 0:02:22]}  Be7 {[%clk 0:02:19]} 11. O-O {[%clk 0:02:22]}  O-O {[%clk 0:02:19]} 12. Re1 {[%clk 0:02:17]}  Re8 {[%clk 0:02:14]} 13. Bg5 {[%clk 0:02:15]}  h6 {[%clk 0:02:12]} 14. Bd2 {[%clk 0:02:02]}  a5 {[%clk 0:02:11]} 15. Qb3 {[%clk 0:02:02]}  Qd7 {[%clk 0:01:54]} 16. a4 {[%clk 0:02:02]}  Nd5 {[%clk 0:01:43]} 17. Nc1 {[%clk 0:01:55]}  Bf5 {[%clk 0:01:21]} 18. Ne2 {[%clk 0:01:54]}  Reb8 {[%clk 0:01:12]} 19. Bf4 {[%clk 0:01:46]}  Rd8 {[%clk 0:01:07]} 20. Rad1 {[%clk 0:01:44]}  Bd6 {[%clk 0:00:57]} 21. Bxd6 {[%clk 0:01:42]}  Qxd6 {[%clk 0:00:56]} 22. Nc1 {[%clk 0:01:38]}  Rdb8 {[%clk 0:00:54]} 23. c4 {[%clk 0:01:26]}  Nb4 {[%clk 0:00:52]} 24. Rd2 {[%clk 0:01:10]}  Rd8 {[%clk 0:00:44]} 25. Na2 {[%clk 0:01:00]}  Nxa2 {[%clk 0:00:42]} 26. Qxa2 {[%clk 0:01:01]}  Rd7 {[%clk 0:00:42]} 27. Qb3 {[%clk 0:00:59]}  Rad8 {[%clk 0:00:35]} 28. Red1 {[%clk 0:00:59]}  Qc7 {[%clk 0:00:35]} 29. Qc3 {[%clk 0:00:58]}  Bg4 {[%clk 0:00:31]} 30. f3 {[%clk 0:00:50]}  Bf5 {[%clk 0:00:31]} 31. c5 {[%clk 0:00:32]}  Rd5 {[%clk 0:00:16]} 32. f4 {[%clk 0:00:32]}  R5d7 {[%clk 0:00:16]} 33. Bf3 {[%clk 0:00:32]}  Qc8 {[%clk 0:00:16]} 34. Kg2 {[%clk 0:00:32]}  Qc7 {[%clk 0:00:16]} 35. Kg1 {[%clk 0:00:31]}  Qc8 {[%clk 0:00:16]} 36. Qxa5 {[%clk 0:00:30]}  Bh3 {[%clk 0:00:10]} 37. Qc3 {[%clk 0:00:28]}  Bf5 {[%clk 0:00:10]} 38. Kg2 {[%clk 0:00:28]}  Qa8 {[%clk 0:00:10]} 39. Qa3 {[%clk 0:00:25]}  Qa6 {[%clk 0:00:10]} 40. b4 {[%clk 0:00:25]}  Qc4 {[%clk 0:00:10]} 41. Rc1 {[%clk 0:00:20]}  Qa6 {[%clk 0:00:09]} 42. Qa1 {[%clk 0:00:18]}  Ra8 {[%clk 0:00:06]} 43. Ra2 {[%clk 0:00:15]}  Qd3 {[%clk 0:00:06]} 44. Rd1 {[%clk 0:00:15]}  Qc4 {[%clk 0:00:06]} 45. Qc1 {[%clk 0:00:14]}  Qxb4 {[%clk 0:00:06]} 46. a5 {[%clk 0:00:14]}  Rxa5 {[%clk 0:00:06]} 47. Rxa5 {[%clk 0:00:13]}  Qxa5 {[%clk 0:00:06]} 48. Qc4 {[%clk 0:00:13]}  Qa2+ {[%clk 0:00:06]} 49. Qxa2 {[%clk 0:00:13]} 1-0


[Site "https://www.chess.com"]

[Event "Titled Tuesday Blitz April 11 Early 2023"]
[White "FuenfgegenWilly"]
[Black "Janaszak, Dawid"]
[BlackFideId "1119206"]
[WhiteElo "2226"]
[BlackElo "2220"]
[Result "0-1"]
[Round "01"]
[TimeControl "180+2"]
[Date "2023.04.11"]
[WhiteClock "0:00:03"]
[BlackClock "0:00:15"]

1. Nf3 {[%clk 0:02:59]}  c5 {[%clk 0:02:58]} 2. e3 {[%clk 0:02:59]}  g6 {[%clk 0:02:58]} 3. c4 {[%clk 0:02:56]}  Bg7 {[%clk 0:02:58]} 4. Nc3 {[%clk 0:02:56]}  Nf6 {[%clk 0:02:59]} 5. b3 {[%clk 0:02:56]}  O-O {[%clk 0:02:58]} 6. Bb2 {[%clk 0:02:56]}  d6 {[%clk 0:02:57]} 7. g3 {[%clk 0:02:48]}  Nc6 {[%clk 0:02:56]} 8. Bg2 {[%clk 0:02:48]}  e5 {[%clk 0:02:57]} 9. d3 {[%clk 0:02:47]}  Bf5 {[%clk 0:02:55]} 10. O-O {[%clk 0:02:47]}  Nb4 {[%clk 0:02:52]} 11. e4 {[%clk 0:02:43]}  Be6 {[%clk 0:02:51]} 12. Nd5 {[%clk 0:02:41]}  Nbxd5 {[%clk 0:02:48]} 13. cxd5 {[%clk 0:02:41]}  Bd7 {[%clk 0:02:46]} 14. Nh4 {[%clk 0:02:31]}  Nh5 {[%clk 0:02:41]} 15. Qe1 {[%clk 0:01:58]}  Nf4 {[%clk 0:02:32]} 16. gxf4 {[%clk 0:01:54]}  Qxh4 {[%clk 0:02:32]} 17. fxe5 {[%clk 0:01:54]}  dxe5 {[%clk 0:02:26]} 18. f4 {[%clk 0:01:52]}  Qe7 {[%clk 0:02:19]} 19. Qf2 {[%clk 0:01:41]}  f5 {[%clk 0:02:12]} 20. Rac1 {[%clk 0:01:33]}  b6 {[%clk 0:02:10]} 21. fxe5 {[%clk 0:01:23]}  Bxe5 {[%clk 0:02:09]} 22. Bxe5 {[%clk 0:01:23]}  Qxe5 {[%clk 0:02:10]} 23. Qg3 {[%clk 0:01:07]}  f4 {[%clk 0:02:08]} 24. Qf3 {[%clk 0:01:03]}  g5 {[%clk 0:02:06]} 25. Bh3 {[%clk 0:01:03]}  g4 {[%clk 0:01:58]} 26. Bxg4 {[%clk 0:00:57]}  Qg5 {[%clk 0:01:58]} 27. Kf2 {[%clk 0:00:46]}  Bxg4 {[%clk 0:01:53]} 28. Rg1 {[%clk 0:00:43]}  h5 {[%clk 0:01:49]} 29. h3 {[%clk 0:00:41]}  Kg7 {[%clk 0:01:34]} 30. hxg4 {[%clk 0:00:41]}  h4 {[%clk 0:01:34]} 31. b4 {[%clk 0:00:32]}  Rac8 {[%clk 0:01:33]} 32. bxc5 {[%clk 0:00:32]}  bxc5 {[%clk 0:01:34]} 33. Rb1 {[%clk 0:00:33]}  Rf7 {[%clk 0:01:33]} 34. Rb5 {[%clk 0:00:29]}  Qe5 {[%clk 0:01:33]} 35. Rgb1 {[%clk 0:00:24]}  c4 {[%clk 0:01:28]} 36. Rc1 {[%clk 0:00:14]}  Qd4+ {[%clk 0:01:21]} 37. Kg2 {[%clk 0:00:14]}  h3+ {[%clk 0:01:19]} 38. Kh2 {[%clk 0:00:13]}  Rcc7 {[%clk 0:00:56]} 39. d6 {[%clk 0:00:12]}  Rb7 {[%clk 0:00:47]} 40. Rg5+ {[%clk 0:00:12]}  Kf8 {[%clk 0:00:46]} 41. Rf5 {[%clk 0:00:12]}  Rxf5 {[%clk 0:00:44]} 42. gxf5 {[%clk 0:00:12]}  Qb2+ {[%clk 0:00:44]} 43. Kxh3 {[%clk 0:00:12]}  Rh7+ {[%clk 0:00:44]} 44. Kg4 {[%clk 0:00:11]}  Qxc1 {[%clk 0:00:43]} 45. f6 {[%clk 0:00:12]}  cxd3 {[%clk 0:00:38]} 46. Kf5 {[%clk 0:00:11]}  Qc5+ {[%clk 0:00:37]} 47. Kg6 {[%clk 0:00:11]}  Rh8 {[%clk 0:00:20]} 48. e5 {[%clk 0:00:12]}  Qc8 {[%clk 0:00:19]} 49. d7 {[%clk 0:00:07]}  Qxd7 {[%clk 0:00:16]} 50. Qxf4 {[%clk 0:00:02]}  d2 {[%clk 0:00:13]} 51. e6 {[%clk 0:00:01]}  Qh7+ {[%clk 0:00:13]} 52. Kg5 {[%clk 0:00:02]}  Qh6+ {[%clk 0:00:13]} 53. Kf5 {[%clk 0:00:01]}  Qxf4+ {[%clk 0:00:14]} 54. Kxf4 {[%clk 0:00:02]}  d1=Q {[%clk 0:00:15]} 55. e7+ {[%clk 0:00:03]}  Kf7 {[%clk 0:00:15]} 0-1


[Site "https://www.chess.com"]